bitfinex-derivatives/quotes_SOLF0:USTF0_20240912
["timestamp","ask_amount","ask_price","bid_price","bid_amount"]
[1726102360289,11.47,133.81,133.76,11.47]
[1726102360477,15.16326706,133.81,133.76,11.47]
[1726102360679,11.47,133.8,133.79,3.3628]
[1726102360883,11.47,133.8,133.74,11.47]
[1726102361484,11.47,133.8,133.78,3.363]
[1726102362086,11.47,133.8,133.74,11.47]
[1726102363096,11.47,133.79,133.74,11.47]
[1726102364592,11.47,133.79,133.78,3.3632]
[1726102371904,11.47,133.79,133.77,3.3634]
[1726102373300,11.47,133.79,133.78,3.3632]
[1726102374209,11.47,133.79,133.73,11.47]
[1726102374503,11.47,133.77,133.72,11.47]
[1726102374705,11.47,133.77,133.76,3.3637]
[1726102377701,11.47,133.77,133.74,3.3639]
[1726102377913,3.3629,133.79,133.71,16.0669]
[1726102377914,11.47,133.76,133.71,16.0669]
[1726102378110,11.47,133.76,133.75,3.3639]
[1726102379114,11.47,133.76,133.62,10.12590744]
[1726102379301,11.47,133.73,133.67,11.47]
[1726102379806,11.47,133.73,133.63,4.4095]
[1726102380005,11.47,133.72,133.66,11.47]
[1726102382407,11.47,133.72,133.63,4.4095]
[1726102382603,11.47,133.72,133.65,11.47]
[1726102382999,11.47,133.71,133.65,11.47]
[1726102384103,11.47,133.71,133.7,3.3652]
[1726102384301,15.17297681,133.72,133.7,3.3652]
[1726102384500,11.47,133.72,133.7,3.3652]
[1726102385006,15.23532996,133.72,133.7,3.3652]
[1726102386423,11.47,133.71,133.7,3.3652]
[1726102386718,11.47,133.71,133.69,3.3654]
[1726102386904,11.47,133.69,133.63,4.4095]
[1726102387104,11.47,133.69,133.64,11.47]
[1726102387305,11.47,133.69,133.68,3.3657]
[1726102387512,11.47,133.69,133.64,11.47]
[1726102388326,11.47,133.69,133.68,3.3657]
[1726102390626,11.47,133.69,133.64,11.47]
[1726102390627,11.47,133.69,133.67,3.3659]
[1726102390835,11.47,133.68,133.63,4.4095]
[1726102391124,11.47,133.67,133.63,2.8977]
[1726102391523,11.47,133.68,133.63,2.8977]
[1726102391920,11.47,133.68,133.63,14.3677]
[1726102392326,11.47,133.68,133.67,3.3659]
[1726102393027,11.47,133.69,133.68,3.3657]
[1726102393727,11.47,133.71,133.69,3.3653]
[1726102394728,11.47,133.72,133.7,3.3652]
[1726102395126,11.47,133.72,133.71,3.3649]
[1726102395322,11.47,133.72,133.63,2.8977]
[1726102395323,14.4092,133.75,133.69,11.47]
[1726102395739,11.47,133.74,133.72,3.3645]
[1726102397930,11.47,133.74,133.7,3.365]
[1726102398231,11.47,133.74,133.68,11.47]
[1726102398431,11.47,133.74,133.67,11.47]
[1726102398741,11.47,133.72,133.7,3.3651]
[1726102399130,11.47,133.71,133.69,3.3654]
[1726102399435,11.47,133.7,133.69,3.3654]
[1726102399632,11.47,133.7,133.68,3.3656]
[1726102399829,11.47,133.69,133.68,3.3656]
[1726102400833,11.47,133.69,133.66,3.3661]
[1726102401033,11.47,133.67,133.66,3.3661]
[1726102402031,11.47,133.67,133.6,3.3675]
[1726102402235,11.47,133.64,133.57,11.47]
[1726102402435,11.47,133.64,133.59,11.47]
[1726102402641,11.47,133.65,133.59,11.47]
[1726102403239,11.47,133.63,133.56,8.38598284]
[1726102403438,11.47,133.64,133.58,11.47]
[1726102403836,11.47,133.63,133.6,3.3676]
[1726102405839,11.47,133.64,133.61,3.3673]
[1726102406243,11.47,133.63,133.6,3.3676]
[1726102407148,11.47,133.63,133.59,3.3679]
[1726102408653,11.47,133.61,133.56,4.5563]
[1726102408840,11.47,133.6,133.56,3.0203]
[1726102409346,11.47,133.59,133.53,11.47]
[1726102409549,11.47,133.59,133.52,4.4573]
[1726102409746,11.47,133.59,133.52,15.9273]
[1726102410248,11.47,133.59,133.54,11.47]
[1726102410451,11.47,133.59,133.58,3.3682]
[1726102414049,11.47,133.59,133.57,3.3684]
[1726102417452,11.47,133.59,133.58,3.3682]
[1726102417848,11.47,133.59,133.52,4.4573]
[1726102418046,3.0764,133.64,133.52,3.0134]
[1726102418047,11.47,133.55,133.52,3.0134]
[1726102418452,11.47,133.54,133.43,1.4299]
[1726102418651,11.47,133.55,133.5,11.47]
[1726102418855,11.47,133.55,133.5,12.9796]
[1726102419255,11.47,133.57,133.52,11.47]
[1726102421250,3.3678,133.6,133.52,11.47]
[1726102421457,11.47,133.58,133.52,11.47]
[1726102421853,11.47,133.61,133.55,11.47]
[1726102422559,11.47,133.61,133.58,3.368]
[1726102422760,11.47,133.61,133.56,3.0205]
[1726102422957,11.47,133.6,133.56,3.0205]
[1726102424262,11.47,133.6,133.57,3.3684]
[1726102429060,11.47,133.6,133.56,3.0205]
[1726102429061,11.47,133.6,133.56,3.3687]
[1726102429257,11.47,133.57,133.52,14.4155]
[1726102429649,3.0764,133.64,133.52,14.4155]
[1726102429855,11.47,133.59,133.54,11.47]
[1726102430053,11.47,133.59,133.52,2.9455]
[1726102430054,11.47,133.58,133.52,14.4155]
[1726102430763,14.8386,133.57,133.53,3.3694]
[1726102431168,11.47,133.57,133.54,3.3692]
[1726102431870,11.47,133.58,133.55,3.3688]
[1726102432062,3.0764,133.64,133.55,3.3688]
[1726102432258,11.47,133.58,133.55,3.3688]
[1726102432659,14.8382,133.58,133.55,3.3688]
[1726102432859,11.47,133.58,133.55,3.3688]
[1726102433862,3.3681,133.59,133.55,3.3688]
[1726102434069,11.47,133.6,133.56,3.3687]
[1726102434459,14.8379,133.6,133.56,3.3687]
[1726102434968,11.47,133.58,133.55,3.3689]
[1726102435767,3.3682,133.59,133.56,3.3687]
[1726102436065,11.47,133.58,133.53,11.47]
[1726102436660,11.47,133.58,133.55,3.3689]
[1726102436861,11.47,133.6,133.54,11.47]
[1726102437865,11.47,133.6,133.56,3.3685]
[1726102437866,14.8377,133.6,133.56,3.3685]
[1726102441665,14.838,133.59,133.56,3.3685]
[1726102442764,14.838,133.59,133.55,3.3689]
[1726102443773,11.47,133.59,133.52,12.99]
[1726102443970,3.0764,133.64,133.54,11.47]
[1726102444173,11.47,133.6,133.54,11.47]
[1726102444368,3.0764,133.64,133.54,11.47]
[1726102444675,14.5464,133.64,133.58,11.47]
[1726102444862,11.47,133.62,133.57,11.47]
[1726102445668,14.8372,133.62,133.58,3.368]
[1726102445973,11.47,133.61,133.55,11.47]
[1726102446171,3.3677,133.6,133.56,3.3685]
[1726102447769,14.8376,133.61,133.54,11.47]
[1726102448075,14.8376,133.61,133.57,3.3684]
[1726102449972,11.47,133.61,133.56,3.3687]
[1726102450279,11.47,133.59,133.53,11.47]
[1726102450869,11.47,133.59,133.55,3.3688]
[1726102450870,14.838,133.59,133.55,3.3688]
[1726102452083,15.16282526,133.58,133.52,1.52]
[1726102452382,11.47,133.57,133.52,1.52]
[1726102453173,11.47,133.57,133.53,3.3693]
[1726102453880,11.47,133.54,133.42,3.0951]
[1726102454068,11.47,133.54,133.48,153.72142783]
[1726102454274,11.47,133.55,133.49,11.47]
[1726102454475,15.2120444,133.55,133.49,11.47]
[1726102454771,15.2120444,133.55,133.51,3.3699]
[1726102455986,3.7420444,133.55,133.52,3.3697]
[1726102456179,2.8383,133.59,133.51,11.47]
[1726102456381,14.3083,133.59,133.54,11.47]
[1726102456686,2.8383,133.59,133.55,14.839]
[1726102456886,12.9683,133.6,133.55,11.47]
[1726102457077,1.4983,133.6,133.56,11.47]
[1726102457475,1.4983,133.6,133.57,11.47]
[1726102457675,2.8184,133.64,133.59,11.47]
[1726102457676,14.2884,133.64,133.59,11.47]
[1726102457879,17.6551,133.64,133.59,11.47]
[1726102458080,14.2884,133.64,133.59,11.47]
[1726102458990,11.47,133.63,133.57,11.47]
[1726102459285,11.47,133.61,133.56,11.47]
[1726102460085,1.4835,133.62,133.54,17.97]
[1726102460883,3.3676,133.61,133.55,3.3689]
[1726102461082,19.4535,133.62,133.52,17.97]
[1726102461487,3.3675,133.61,133.52,17.97]
[1726102461990,3.3678,133.6,133.52,17.97]
[1726102462891,3.3675,133.61,133.52,17.97]
[1726102463094,19.4535,133.62,133.52,17.97]
[1726102463286,3.3679,133.6,133.52,3.3695]
[1726102463491,19.4535,133.62,133.51,17.97]
[1726102464088,19.4535,133.62,133.55,3.3689]
[1726102464689,3.3677,133.6,133.55,3.3689]
[1726102465595,3.368,133.59,133.55,3.3689]
[1726102465995,3.368,133.59,133.54,3.3692]
[1726102466499,17.97,133.6,133.54,3.3692]
[1726102466791,3.68837553,133.75,133.59,17.97]
[1726102466989,17.97,133.69,133.59,17.97]
[1726102467190,3.76422371,133.68,133.63,3.3669]
[1726102467587,3.76422371,133.68,133.59,17.97]
[1726102467792,3.3662,133.67,133.62,3.3671]
[1726102467989,3.67700572,133.66,133.57,17.97]
[1726102468290,8.34920572,133.66,133.57,17.97]
[1726102469090,4.6722,133.66,133.57,17.97]
[1726102469596,8.0385,133.66,133.61,3.3673]
[1726102470186,8.0385,133.66,133.62,3.3672]
[1726102470387,3.3665,133.65,133.55,22.5326]
[1726102470896,4.6722,133.66,133.61,3.3673]
[1726102471898,4.6722,133.66,133.62,3.3672]
[1726102472198,4.6722,133.66,133.59,17.97]
[1726102472797,1.5009,133.66,133.59,17.97]
[1726102473092,17.97,133.72,133.62,17.97]
[1726102473295,1.19826749,133.71,133.55,4.5626]
[1726102473491,17.97,133.7,133.6,17.97]
[1726102473898,3.3658,133.68,133.63,3.367]
[1726102474097,3.3658,133.68,133.6,17.97]
[1726102474796,3.3658,133.68,133.64,3.3667]
[1726102475494,3.366,133.67,133.63,3.3669]
[1726102476290,3.3658,133.68,133.64,3.3667]
[1726102481603,3.366,133.67,133.63,3.3669]
[1726102483705,17.97,133.68,133.58,17.97]
[1726102483907,1.5286,133.66,133.58,17.97]
[1726102484100,15.23466736,133.65,133.59,11.49]
[1726102484407,11.49,133.65,133.59,11.49]
[1726102484809,14.8566,133.65,133.61,3.3674]
[1726102485196,3.367,133.63,133.55,4.5626]
[1726102485403,11.49,133.64,133.58,11.49]
[1726102485902,3.3671,133.63,133.59,3.368]
[1726102486403,3.72109952,133.65,133.56,17.96]
[1726102487500,19.4886,133.66,133.58,17.96]
[1726102487501,1.5286,133.66,133.58,17.96]
[1726102488214,4.8948,133.66,133.58,17.96]
[1726102488911,19.4886,133.66,133.55,2.9706]
[1726102489103,17.96,133.64,133.55,2.9706]
[1726102489412,21.76163473,133.64,133.55,2.9706]
[1726102489611,3.3676,133.61,133.56,3.3686]
[1726102489908,21.76163473,133.64,133.56,3.3686]
[1726102490209,21.76163473,133.64,133.55,2.9706]
[1726102490405,3.3673,133.62,133.55,2.9706]
[1726102491903,3.3673,133.62,133.58,3.3681]
[1726102492904,3.3675,133.61,133.57,3.3684]
[1726102494018,3.3673,133.62,133.57,3.3684]
[1726102494204,19.4886,133.66,133.58,3.3681]
[1726102495212,3.3672,133.63,133.58,3.3681]
[1726102495410,7.09755125,133.63,133.58,3.3681]
[1726102495914,3.3673,133.62,133.58,3.3681]
[1726102498914,3.3673,133.62,133.57,3.3684]
[1726102499115,3.3673,133.62,133.55,2.9706]
[1726102499410,3.3673,133.62,133.57,3.3682]
[1726102500216,3.3673,133.62,133.58,3.3682]
[1726102500515,3.3675,133.61,133.55,2.9706]
[1726102500816,17.96,133.65,133.56,3.3687]
[1726102501111,3.80781741,133.65,133.55,2.9706]
[1726102501308,17.96,133.63,133.55,3.3689]
[1726102501510,3.2699,133.62,133.55,3.3689]
[1726102501716,3.3682,133.58,133.52,17.96]
[1726102502120,3.368,133.59,133.52,17.96]
[1726102502309,17.96,133.6,133.52,17.96]
[1726102502712,3.368,133.59,133.55,3.3688]
[1726102503318,17.96,133.6,133.52,17.96]
[1726102504411,3.3684,133.58,133.54,3.3691]
[1726102504607,17.96,133.6,133.52,17.96]
[1726102505220,3.3681,133.59,133.54,3.369]
[1726102505416,17.96,133.6,133.5,21.1219]
[1726102505823,17.96,133.58,133.5,21.1219]
[1726102506015,17.96,133.58,133.5,3.1619]
[1726102506214,11.51,133.56,133.5,14.6719]
[1726102506410,11.51,133.56,133.52,3.3695]
[1726102507010,6.7295,133.72,133.61,0.88724257]
[1726102507216,11.51,133.7,133.65,11.51]
[1726102507416,3.2174,133.71,133.66,11.51]
[1726102507620,14.7274,133.71,133.65,3.3663]
[1726102507919,14.7274,133.71,133.64,11.51]
[1726102508429,11.51,133.67,133.62,1.5618]
[1726102508722,11.51,133.67,133.61,0.88724257]
[1726102508922,11.51,133.67,133.63,3.3667]
[1726102509127,3.2174,133.71,133.62,11.51]
[1726102509128,11.51,133.68,133.62,11.51]
[1726102509624,3.2174,133.71,133.61,12.39724257]
[1726102509625,11.51,133.67,133.61,12.39724257]
[1726102510119,14.876,133.67,133.62,3.367]
[1726102510323,17.96,133.68,133.61,0.88724257]
[1726102510716,3.3663,133.66,133.61,4.25474257]
[1726102511112,3.366,133.67,133.61,4.25474257]
[1726102513118,3.3662,133.66,133.61,4.25474257]
[1726102513323,3.81528229,133.65,133.61,4.25474257]
[1726102514424,6.84768229,133.65,133.61,4.25474257]
[1726102518321,10.21418229,133.65,133.61,0.88724257]
[1726102518520,11.79318229,133.65,133.61,0.88724257]
[1726102520519,11.79318229,133.65,133.61,4.25474257]
[1726102521637,3.0324,133.65,133.61,0.88724257]
[1726102521927,1.641,133.71,133.62,17.96]
[1726102522121,4.7701,133.71,133.67,3.3658]
[1726102522627,8.57220459,133.71,133.67,3.3658]
[1726102523427,8.57220459,133.71,133.64,17.96]
[1726102524325,4.7701,133.71,133.64,17.96]
[1726102524728,4.7701,133.71,133.69,3.3654]
[1726102525430,4.7701,133.71,133.68,3.3656]
[1726102525630,3.1291,133.71,133.64,17.96]
[1726102526028,3.81741818,133.72,133.65,17.96]
[1726102526331,17.96,133.76,133.65,17.96]
[1726102526332,3.364,133.75,133.65,17.96]
[1726102526527,7.07294754,133.75,133.65,17.96]
[1726102527225,7.07294754,133.75,133.69,3.3652]
[1726102527425,7.07294754,133.75,133.65,17.96]
[1726102527937,7.07294754,133.75,133.7,3.3651]
[1726102528431,3.70894754,133.75,133.71,3.3648]
[1726102528732,3.68081665,133.77,133.7,17.96]
[1726102528938,3.3635,133.77,133.72,3.3645]
[1726102529128,21.66026219,133.77,133.61,16.17560497]
[1726102529330,17.96,133.77,133.67,17.96]
[1726102529641,21.7447755,133.77,133.67,17.96]
[1726102529831,3.3639,133.76,133.7,3.3652]
[1726102530440,3.3639,133.76,133.67,17.96]
[1726102530630,3.3639,133.76,133.71,3.3648]
[1726102530829,25.1082755,133.77,133.67,17.96]
[1726102531035,25.1082755,133.77,133.72,3.3645]
[1726102531239,21.7447755,133.77,133.69,17.96]
[1726102531539,3.3638,133.76,133.69,17.96]
[1726102531746,3.3638,133.76,133.72,3.3647]
[1726102531941,21.7447755,133.77,133.72,3.3647]
[1726102533846,3.3637,133.76,133.72,3.3647]
[1726102536143,14.8537,133.76,133.72,3.3647]
[1726102536742,15.2747755,133.77,133.74,3.3642]
[1726102536940,3.7847755,133.77,133.71,11.49]
[1726102537142,3.7847755,133.77,133.73,11.49]
[1726102537443,19.7847755,133.77,133.73,11.49]
[1726102538038,16.0,133.77,133.74,11.49]
[1726102538241,16.0,133.77,133.73,17.95]
[1726102538444,16.0,133.77,133.76,3.3637]
[1726102540745,16.0,133.78,133.77,3.3634]
[1726102541843,16.0,133.78,133.75,21.3139]
[1726102542042,16.0,133.78,133.75,3.3639]
[1726102542548,16.0,133.78,133.76,3.3636]
[1726102542849,16.0,133.78,133.73,17.95]
[1726102544653,16.0,133.78,133.75,17.95]
[1726102545354,16.0,133.78,133.73,17.95]
[1726102546856,16.0,133.78,133.75,3.3637]
[1726102547158,16.0,133.78,133.73,17.95]
[1726102547355,16.0,133.78,133.72,17.95]
[1726102547555,16.0,133.78,133.75,3.3637]
[1726102547856,16.0,133.78,133.74,17.95]
[1726102548055,16.0,133.78,133.77,3.3634]
[1726102556960,16.0,133.78,133.74,3.0852]
[1726102557154,16.0,133.78,133.74,1.503]
[1726102557351,16.0,133.78,133.75,3.3639]
[1726102559862,16.0,133.78,133.74,1.503]
[1726102560061,16.0,133.78,133.76,3.3637]
[1726102560465,16.0,133.78,133.73,17.95]
[1726102560766,19.68786041,133.78,133.71,17.95]
[1726102560971,19.68786041,133.78,133.71,3.3648]
[1726102561163,1.5228,133.77,133.71,3.3648]
[1726102563160,1.5228,133.77,133.72,3.3646]
[1726102563759,1.5228,133.77,133.71,17.95]
[1726102563970,1.5228,133.77,133.73,17.95]
[1726102564369,1.5228,133.77,133.74,3.3641]
[1726102564972,19.68786041,133.78,133.75,3.3638]
[1726102565673,16.0,133.78,133.75,3.3638]
[1726102566475,16.0,133.78,133.76,3.3637]
[1726102569974,16.0,133.78,133.77,3.3634]
[1726102570179,16.0,133.78,133.73,17.95]
[1726102571380,16.0,133.78,133.76,3.3635]
[1726102572283,16.0,133.78,133.77,3.3634]
[1726102576287,16.0,133.78,133.77,14.8434]
[1726102578187,16.0,133.78,133.77,11.48]
[1726102578579,16.0,133.78,133.77,14.8434]
[1726102581881,3.0415,133.82,133.8,3.3626]
[1726102582080,1.5129,133.82,133.81,11.48]
[1726102583694,1.5129,133.82,133.8,3.3626]
[1726102588101,5.23874482,133.85,133.8,3.3626]
[1726102588300,1.5126,133.85,133.8,3.3626]
[1726102589001,3.0564,133.85,133.8,3.3626]
[1726102590799,3.0564,133.85,133.79,11.48]
[1726102590800,3.0564,133.85,133.79,14.8428]
[1726102594299,1.19682176,133.84,133.79,14.8428]
[1726102595100,3.0564,133.85,133.79,14.8428]
[1726102600107,3.0564,133.85,133.8,3.3627]
[1726102600509,3.68364507,133.86,133.81,11.48]
[1726102600706,11.48,133.87,133.81,11.48]
[1726102600911,4.2443143,133.86,133.81,11.48]
[1726102601112,4.6535,133.86,133.81,11.48]
[1726102601913,12.67673298,133.85,133.75,3.0545]
[1726102602109,4.6535,133.86,133.77,11.48]
[1726102602110,11.48,133.83,133.77,11.48]
[1726102602613,11.48,133.82,133.76,14.8436]
[1726102604220,11.48,133.82,133.76,3.3636]
[1726102604422,11.48,133.82,133.77,11.48]
[1726102607018,11.48,133.82,133.76,11.48]
[1726102607214,3.0136,133.81,133.76,11.48]
[1726102611129,3.0136,133.81,133.76,14.8436]
[1726102611426,3.0136,133.81,133.77,11.48]
[1726102612827,3.0136,133.81,133.77,14.8433]
[1726102616132,3.0136,133.81,133.77,11.48]
[1726102617935,3.0136,133.81,133.77,14.8434]
[1726102620047,3.0136,133.81,133.77,11.48]
[1726102620247,3.0136,133.81,133.76,11.48]
[1726102621247,3.0136,133.81,133.71,1.6353]
[1726102621248,3.0136,133.81,133.75,14.8438]
[1726102622547,11.48,133.8,133.75,11.48]
[1726102622745,15.20299357,133.8,133.75,11.48]
[1726102623446,15.20299357,133.8,133.75,14.8439]
[1726102628248,11.48,133.79,133.74,11.48]
[1726102629657,11.48,133.77,133.71,13.1153]
[1726102629855,1.43,133.8,133.73,11.48]
[1726102630153,11.48,133.79,133.73,11.48]
[1726102630347,15.15776302,133.79,133.73,11.48]
[1726102630542,15.15776302,133.79,133.74,3.364]
[1726102630744,3.67776302,133.79,133.74,11.48]
[1726102631051,3.74625927,133.79,133.78,11.48]
[1726102631257,11.48,133.82,133.78,11.48]
[1726102633655,11.48,133.85,133.79,11.48]
[1726102634253,31.60663228,133.86,133.8,11.48]
[1726102635542,20.12663228,133.86,133.8,14.8426]
[1726102635762,14.1757,133.86,133.8,14.8426]
[1726102636349,12.8453,133.86,133.82,11.48]
[1726102637552,16.2067,133.86,133.82,11.48]
[1726102638259,3.70618738,133.87,133.83,11.48]
[1726102638555,3.3609,133.88,133.83,14.8417]
[1726102638756,3.3609,133.88,133.78,4.0416]
[1726102638757,3.64367805,133.88,133.84,11.48]
[1726102638948,3.3604,133.89,133.84,11.48]
[1726102639155,3.3604,133.89,133.84,14.8415]
[1726102639855,7.16402617,133.89,133.84,14.8415]
[1726102640160,3.3604,133.89,133.84,14.8415]
[1726102640648,7.14534064,133.89,133.84,14.8415]
[1726102640851,3.3604,133.89,133.84,14.8415]
[1726102641246,7.08555427,133.89,133.84,14.8415]
[1726102643764,14.8407,133.88,133.83,14.8419]
[1726102643967,11.48,133.85,133.78,4.0416]
[1726102644170,11.48,133.85,133.8,3.3626]
[1726102644662,3.82751113,133.84,133.8,3.3626]
[1726102645864,7.18921113,133.84,133.79,3.3629]
[1726102646063,3.3617,133.84,133.79,14.8429]
[1726102647056,3.8151836,133.83,133.79,14.8429]
[1726102647970,11.48,133.85,133.8,11.48]
[1726102648264,15.23906189,133.85,133.8,11.48]
[1726102648469,18.60066189,133.85,133.8,11.48]
[1726102649859,18.60066189,133.85,133.8,14.8426]
[1726102653261,3.3619,133.84,133.79,3.3629]
[1726102653461,3.3619,133.84,133.8,11.48]
[1726102654170,18.60066189,133.85,133.8,14.8426]
[1726102657072,3.3617,133.84,133.8,11.48]
[1726102659360,11.48,133.84,133.78,12.7891]
[1726102660168,3.3624,133.82,133.78,12.7891]
[1726102661774,3.3624,133.82,133.78,16.1523]
[1726102664672,3.362,133.83,133.78,16.1523]
[1726102668280,3.3622,133.82,133.78,12.7891]
[1726102670786,3.3622,133.82,133.78,16.1523]
[1726102681887,3.3622,133.82,133.78,4.6723]
[1726102682079,3.3624,133.81,133.77,3.3634]
[1726102682588,11.48,133.8,133.71,1.2933]
[1726102682782,11.48,133.79,133.73,11.48]
[1726102682983,2.6599,133.87,133.73,11.48]
[1726102682984,3.3635,133.77,133.73,3.3644]
[1726102683789,7.02153282,133.77,133.73,3.3644]
[1726102685285,3.3637,133.76,133.72,14.8447]
[1726102686393,7.08603345,133.76,133.72,14.8447]
[1726102687595,3.72233345,133.76,133.72,14.8447]
[1726102689795,15.20233345,133.76,133.72,14.8447]
[1726102691592,18.56603345,133.76,133.71,4.6582]
[1726102692001,11.48,133.75,133.71,1.2933]
[1726102692190,14.8441,133.75,133.7,3.3652]
[1726102693298,3.7164381,133.74,133.7,3.3652]
[1726102693996,3.3642,133.74,133.7,3.3652]
[1726102694298,14.8442,133.74,133.69,14.8453]
[1726102694496,14.8442,133.74,133.69,3.3653]
[1726102694685,3.69250691,133.73,133.69,3.3653]
[1726102695589,18.53700691,133.73,133.69,3.3653]
[1726102695789,3.69250691,133.73,133.68,153.52636468]
[1726102696494,3.69250691,133.73,133.7,3.365]
[1726102697092,3.69250691,133.73,133.69,3.3654]
[1726102699597,15.17250691,133.73,133.69,3.3654]
[1726102705601,18.53690691,133.73,133.69,3.3654]
[1726102707102,18.53690691,133.73,133.68,145.41196468]
[1726102707801,15.17250691,133.73,133.69,3.3654]
[1726102711102,18.53700691,133.73,133.69,3.3654]
[1726102712810,15.17250691,133.73,133.69,3.3654]
[1726102713112,15.17250691,133.73,133.7,3.3652]
[1726102714112,15.17250691,133.73,133.69,3.3653]
[1726102714405,18.53700691,133.73,133.69,3.3653]
[1726102716413,11.48,133.7,133.63,4.0784]
[1726102716615,11.48,133.7,133.65,11.48]
[1726102717111,11.48,133.69,133.64,11.48]
[1726102717813,11.48,133.69,133.66,3.366]
[1726102719007,11.48,133.69,133.67,3.3659]
[1726102720214,14.8455,133.69,133.63,4.0784]
[1726102720410,11.48,133.68,133.63,4.0784]
[1726102721115,11.48,133.68,133.65,3.3663]
[1726102722013,11.48,133.68,133.63,15.5584]
[1726102722615,11.48,133.68,133.65,3.3663]
[1726102731713,11.48,133.69,133.66,3.366]
[1726102732422,7.02058734,133.7,133.66,3.366]
[1726102732621,15.13528734,133.7,133.66,3.366]
[1726102732817,15.13528734,133.7,133.67,3.3659]
[1726102735618,15.13528734,133.7,133.66,3.3661]
[1726102735824,11.48,133.68,133.66,3.3661]
[1726102737625,3.7564502,133.69,133.66,3.3661]
[1726102737928,11.48,133.68,133.66,3.3661]
[1726102750745,11.48,133.67,133.65,3.3664]
[1726102755044,11.48,133.68,133.65,3.3664]
[1726102760640,11.48,133.67,133.65,3.3664]
[1726102761043,11.48,133.67,133.64,3.3666]
[1726102762752,7.16133955,133.68,133.64,3.3666]
[1726102762953,18.64133955,133.68,133.64,3.3666]
[1726102763350,11.48,133.65,133.63,3.3669]
[1726102769355,14.8466,133.65,133.62,3.3671]
[1726102771149,3.68714995,133.67,133.63,3.3669]
[1726102771351,11.48,133.66,133.63,3.3669]
[1726102771559,15.30060817,133.66,133.6,157.2712165]
[1726102772247,3.82060817,133.66,133.6,157.2712165]
[1726102772452,11.48,133.66,133.6,157.2712165]
[1726102772653,15.29125585,133.66,133.6,157.2712165]
[1726102773856,15.29125585,133.66,133.63,3.3669]
[1726102781869,11.48,133.64,133.6,145.7912165]
[1726102782758,11.48,133.64,133.62,3.367]
[1726102787971,11.48,133.65,133.62,3.367]
[1726102794675,14.8465,133.65,133.61,3.3674]
[1726102796174,11.48,133.63,133.6,3.64936564]
[1726102796475,11.48,133.62,133.57,1.3647]
[1726102796671,11.48,133.62,133.57,5.03322743]
[1726102796876,11.48,133.62,133.59,3.3677]
[1726102797570,11.48,133.62,133.6,3.3676]
[1726102800581,11.48,133.63,133.61,3.3675]
[1726102801067,3.82716645,133.64,133.58,11.48]
[1726102801068,15.30716645,133.64,133.58,11.48]
[1726102801271,14.59684617,133.75,133.6,11.48]
[1726102801575,11.48,133.67,133.61,11.48]
[1726102801781,15.17686526,133.67,133.64,3.3666]